Cogmind - Beta 15 @@@ ROGUE MODE // 2025.07.26 @ 23:52:41 Player: COGMINDER69 Result: Self-destructed Performance ------------- Evolutions (7) 3500 Regions Visited (12) 2400 Robots Destroyed (146) 730 Value Destroyed (4063) 4063 Prototype IDs (52) 1040 Alien Tech Used (0) 0 Bonus (342) 342 TOTAL SCORE: 12075 Bonus ------- Follower Combat Kills 42 Aligned with FarCom 300 Cogmind --------- Core Integrity 1116/1300 Matter 11/300 Energy 198/200 System Corruption 2% Temperature Cool (3) Movement Flying (25) Location -3/Research Parts ------- > --- POWER (2) -------- Micro Fission Core Micro Antimatter Reactor > --- PROPULSION (7) --- Cooled VTOL Module Improved Surge Thruster Biomechanical Wings Biomechanical Wings Cooled Field Propulsion Drive > --- UTILITY (10) ----- Advanced Visual Processing Unit Advanced Signal Interpreter Advanced ECM Suite Advanced Hacking Suite System Shield Improved System Shield Improved System Shield > --- WEAPON (2) ------- Fusion Bomb Launcher > --- INVENTORY (5) ---- Advanced Datajack Peak State ------------ > --- POWER ------------ Micro Fission Core Micro Antimatter Reactor > --- PROPULSION ------- Improved Flight Unit Cooled VTOL Module Improved Surge Thruster Biomechanical Wings Biomechanical Wings Cooled Field Propulsion Drive > --- UTILITY ---------- Advanced Visual Processing Unit Advanced Signal Interpreter Advanced ECM Suite Hacking Suite Advanced Hacking Suite System Shield Improved System Shield Improved System Shield System Restoration Module > --- WEAPON ----------- Fusion Bomb Launcher Katana > --- INVENTORY -------- Advanced Datajack [Rating: 96] Favorites ----------- Power Ion Engine Engine Ion Engine Power Core Light Nuclear Core Reactor Light Antimatter Reactor Propulsion Light Treads Treads Light Treads Flight Unit Improved Flight Unit Utility Hacking Suite Device Structural Scanner Storage High-capacity Storage Unit Processor Improved Signal Interpreter Hackware Hacking Suite Protection Light Armor Plating Weapon Assault Rifle Energy Gun EM Pulse Gun Ballistic Gun Assault Rifle Ballistic Cannon Assault Cannon Launcher Long-range Missile Launcher Impact Weapon Hammer Slashing Weapon Katana Special Melee Weapon Improved Datajack Build | -11 -10 -10 -9 -9 -9 -8 -8 -7 -6 -5 -4 -3 ------- Run | Yrd Mat Min Mat Min Exi Min Mat Fac Fac Fac Fac Res Slots Evolved 14 | . . . 2 . . . 2 2 2 2 2 2 Power 1 | . . . . . . . . . . . 1 . Propulsion 5 | . . . 1 . . . 1 . . 1 1 1 Utility 8 | . . . 1 . . . 1 2 2 1 . 1 Weapon . | . . . . . . . . . . . . . Parts Attached 116 | 8 8 3 27 2 2 . 21 18 4 8 4 11 Power 16 | 2 . 1 4 . . . 2 1 1 . 3 2 Engine 8 | 2 . . 4 . . . 2 . . . . . Core 6 | . . 1 . . . . . 1 1 . 2 1 Reactor 2 | . . . . . . . . . . . 1 1 Propulsion 32 | 2 2 . 8 . . . 6 7 . 4 1 2 Treads 18 | 2 2 . 8 . . . 6 . . . . . Leg . | . . . . . . . . . . . . . Wheel . | . . . . . . . . . . . . . Hover . | . . . . . . . . . . . . . Flight 14 | . . . . . . . . 7 . 4 1 2 Utility 41 | 1 2 1 7 2 1 . 9 7 3 3 . 5 Device 14 | . . . 3 1 . . 4 3 . 1 . 2 Storage 3 | 1 1 . . . 1 . . . . . . . Processor 4 | . . . . . . . 1 1 . 1 . 1 Hackware 9 | . . . . . . . . 3 3 1 . 2 Protection 11 | . 1 1 4 1 . . 4 . . . . . Artifact . | . . . . . . . . . . . . . Weapon 27 | 3 4 1 8 . 1 . 4 3 . 1 . 2 Energy Gun 1 | 1 . . . . . . . . . . . . Energy Cannon . | . . . . . . . . . . . . . Ballistic Gun 15 | 2 4 . 8 . . . 1 . . . . . Ballistic Cannon 2 | . . . . . . . 2 . . . . . Launcher 3 | . . . . . . . . 1 . 1 . 1 Special Weapon . | . . . . . . . . . . . . . Impact Weapon 2 | . . 1 . . . . 1 . . . . . Slashing Weapon 1 | . . . . . . . . 1 . . . . Piercing Weapon . | . . . . . . . . . . . . . Special Melee Weapon 3 | . . . . . 1 . . 1 . . . 1 Unidentified Prototypes 4 | . . . 1 . . . . . . 2 . 1 Parts Lost 38 | . 1 3 16 . . . 4 . . 2 . 12 Power 4 | . . 1 1 . . . . . . . . 2 Propulsion 11 | . . 1 5 . . . 1 . . 1 . 3 Utility 15 | . . 1 6 . . . 2 . . 1 . 5 Weapon 8 | . 1 . 4 . . . 1 . . . . 2 Highest Loss Streak 6 | . 1 1 6 . . . 2 . . 1 . 6 To Critical Strikes 1 | . . 1 . . . . . . . . . . Average Backups 12 | 2 8 14 17 20 20 20 19 5 4 4 4 1 Power 1 | . 1 1 2 2 2 2 2 . . . 1 . Propulsion 4 | 1 2 4 7 8 8 8 6 1 1 1 . . Utility 3 | . 2 4 3 5 6 6 7 1 2 1 1 . Weapon 2 | . 1 3 3 3 3 3 3 1 . . . . Tool/Special . | . . . . . . . . . . . . . Unused Backups 19 | . 1 1 2 1 . . 4 5 . 5 . . Power 1 | . . . . . . . . . . 1 . . Propulsion 10 | . 1 . 2 1 . . 2 3 . 1 . . Utility 7 | . . 1 . . . . 1 2 . 3 . . Weapon 1 | . . . . . . . 1 . . . . . Tool/Special . | . . . . . . . . . . . . . Average Slot Usage (%) 97 | . 98 99 98 100 100 100 96 97 99 98 93 90 Engine 8 | . 13 13 10 11 11 11 9 . . . . . Core 1 | . . . . . . . . 6 6 4 5 4 Treads 22 | . 27 28 32 33 33 33 35 . . . . . Flight 7 | . . . . . . . . 29 26 29 25 27 Device 7 | . . . 10 11 11 11 7 13 6 8 5 8 Storage 8 | . 14 14 11 11 11 11 9 . . . . . Processor 2 | . . . . . . . 6 1 6 10 10 9 Hackware 7 | . . . . . . . . 22 32 25 26 22 Protection 9 | . 12 13 10 10 11 11 9 6 6 4 5 2 Ballistic Gun 14 | . 27 23 21 22 19 22 7 . . . . . Ballistic Cannon 1 | . . . . . . . 10 . . . . . Launcher 1 | . . . . . . . . 2 6 4 5 2 Slashing Weapon 1 | . . . . . . . . 5 6 5 5 3 Peak Build Rating 96 | 6 8 11 18 22 22 22 33 40 47 67 84 96 Average Rating 27 | 5 7 8 14 21 21 22 27 37 46 61 82 90 On Entrance 28 | . 6 8 9 18 22 22 22 33 38 47 66 84 Naked Turns . | . . . . . . . . . . . . . Heaviest Build 79 | 13 52 52 59 64 64 64 79 16 13 23 32 34 Greatest Support 85 | 40 40 40 63 63 63 63 85 21 21 28 35 40 Greatest Overweight (x) 3 | 3 1 2 1 1 1 1 . . . . . . Average Overweight (x) . | . . 1 . . . 1 . . . . . . Largest Inventory Capacity 20 | 8 20 20 20 20 20 20 20 20 5 5 5 5 Average Capacity 15 | 7 16 20 20 20 20 20 20 5 5 5 5 5 Most Carried 20 | 4 12 17 20 20 20 20 20 20 5 5 5 4 Average Carried 12 | 2 8 14 17 19 19 20 19 5 4 4 4 1 Final Capacity 20 | 8 20 20 20 20 20 20 20 5 5 5 5 5 Final Carried 20 | 4 12 16 20 20 20 20 20 5 5 5 5 1 Class Distribution -------------------- 44% | Mutant 27% | Scavenger-Mutant 16% | Hacker-Sprinter 5% | Hacker-Scout 4% | Hacker-Ninja Dominant Class ---------------- Mutant | -10/Materials Mutant | -10/Mines Scavenger-Mutant | -9/Materials Mutant | -9/Mines Mutant | -9/Exiles Mutant | -8/Mines Scavenger-Mutant | -8/Materials Hacker-Sprinter | -7/Factory Hacker-Sprinter | -6/Factory Hacker-Ninja | -5/Factory Hacker-Scout | -4/Factory Hacker-Ninja | -3/Research Resources | -11 -10 -10 -9 -9 -9 -8 -8 -7 -6 -5 -4 -3 ----------- Run | Yrd Mat Min Mat Min Exi Min Mat Fac Fac Fac Fac Res Matter Collected 4234 | 284 458 192 1189 142 . . 1120 359 71 105 310 4 Remotely . | . . . . . . . . . . . . . Salvage Created 5181 | 72 551 245 2041 240 . . 1391 179 187 113 123 39 Parts 315 | 1 28 15 138 10 . . 74 11 7 14 4 13 Haulers Intercepted 13 | . 2 . 6 . . . 3 2 . . . . Recyclers Shooed 4 | . 1 . 1 . . . . 1 . . 1 . Parts Field Recycled . | . . . . . . . . . . . . . Retrieved Matter . | . . . . . . . . . . . . . Parts Self-Destructed . | . . . . . . . . . . . . . Prevented . | . . . . . . . . . . . . . Kills | -11 -10 -10 -9 -9 -9 -8 -8 -7 -6 -5 -4 -3 ------- Run | Yrd Mat Min Mat Min Exi Min Mat Fac Fac Fac Fac Res Combat Hostiles Destroyed 97 | . 9 6 38 5 . . 24 3 . 7 2 3 Melee 1 | . . . . . . . . 1 . . . . Guns 73 | . 9 6 38 5 . . 15 . . . . . Cannons 9 | . . . . . . . 9 . . . . . AOE 14 | . . . . . . . . 2 . 7 2 3 Classes Destroyed 14 | 1 5 2 2 . . . 1 2 . . . 1 Worker 8 | . . . 5 . . . . . . 1 1 1 Builder 7 | . . . . . . . . 2 . . . 5 Hauler 13 | . 2 . 6 . . . 3 2 . . . . Recycler 6 | 1 1 . 1 . . . 2 . 1 . . . Operator 6 | . 1 . 1 . . . 3 . . 1 . . Drone 1 | . . . . . . . . 1 . . . . Watcher 10 | . 3 . 3 . . . 2 . 1 . 1 . Swarmer 20 | . 3 . 7 . . . 1 2 . 7 . . Cutter 3 | . . . . . . . . . . . . 3 Grunt 49 | . 6 3 21 4 . . 15 . . . . . Duelist 3 | . . . 1 1 . . 1 . . . . . Sentry 17 | . . 2 9 . . . 6 . . . . . Demolisher 1 | . . 1 . . . . . . . . . . Hunter 3 | . . . . . . . 1 . . . 2 . Best Kill Streak 5 | 1 3 3 5 3 . . 5 2 1 4 3 4 Combat Bots Only 5 | . 3 3 4 3 . . 5 2 . 4 2 3 Max Kills in Single Turn 3 | 1 1 1 2 1 . . 2 2 1 3 1 3 Gunslinging . | . . . . . . . . . . . . . Exploded 3 | . . . . . . . . 2 . 3 1 2 Melee 1 | . . . . . . . . 1 . . . . Uniques/NPCs Destroyed . | . . . . . . . . . . . . . Combat | -11 -10 -10 -9 -9 -9 -8 -8 -7 -6 -5 -4 -3 -------- Run | Yrd Mat Min Mat Min Exi Min Mat Fac Fac Fac Fac Res Hostile Shots Fired 637 | . 67 42 234 17 . . 130 48 18 21 7 53 Missed 207 | . 13 18 62 6 . . 36 24 7 12 4 25 Hits 430 | . 54 24 172 11 . . 94 24 11 9 3 28 Melee 11 | . . . 5 1 . . 1 . . . . 4 Projectile 419 | . 54 24 167 10 . . 93 24 11 9 3 24 AOE 9 | . . 5 1 . . . . . . . . 3 Critical Strikes 13 | . . 2 4 . . . 6 . . . . 1 Damage Taken 6454 | . 698 440 2243 162 . . 1121 281 132 315 62 1000 Core 843 | . 80 93 167 28 . . 36 92 35 108 20 184 Absorbed by Shields 316 | . . . . . . . 316 . . . . . Regen/Repaired (Parts) 870 | . 161 . 13 . . . 238 206 . 212 40 . Core Remaining (%) 80 | 100 . 30 . . . 51 93 86 95 89 98 . Volleys Fired 369 | 4 58 20 145 14 . . 99 3 1 3 9 13 Largest 2 | 2 2 2 2 2 . . 2 1 1 1 1 1 Hottest 74 | 60 60 40 50 50 . . 74 30 30 43 43 52 Shots Fired 706 | 8 116 40 287 28 . . 198 3 1 3 9 13 Gun 619 | 8 116 40 287 28 . . 140 . . . . . Cannon 58 | . . . . . . . 58 . . . . . Launcher 29 | . . . . . . . . 3 1 3 9 13 Special . | . . . . . . . . . . . . . Kinetic 672 | 4 115 40 287 28 . . 198 . . . . . Thermal . | . . . . . . . . . . . . . Explosive 29 | . . . . . . . . 3 1 3 9 13 Electromagnetic 5 | 4 1 . . . . . . . . . . . Robot Hit Streak 21 | 8 14 9 21 5 . . 14 . . 5 . 2 Robot Miss Streak 3 | . 3 3 3 2 . . 3 . . . 2 2 Penetration Max . | . . . . . . . . . . . . . Secondary Targets 7 | . 2 . 4 1 . . . . . . . . Max Gunslinging Chain 1 | . 1 . 1 1 . . . . . . . . Shots Hit Robots 484 | 8 74 26 188 18 3 . 139 14 3 4 . 7 Core Hits 235 | 2 29 9 79 8 . . 56 10 3 11 13 15 Critical Kills 1 | . . 1 . . . . . . . . . . Critical Parts Destroyed 2 | . . . 1 . . . 1 . . . . . Critical Strikes 6 | . . 1 1 . . . 4 . . . . . Destroy 4 | . . 1 1 . . . 2 . . . . . Blast 2 | . . . . . . . 2 . . . . . Melee Attacks 124 | . . 1 1 . 3 . 3 61 18 9 8 20 Impact 13 | . . 1 1 . . . 3 8 . . . . Slashing 105 | . . . . . . . . 50 18 9 8 20 Piercing . | . . . . . . . . . . . . . Sneak Attacks 14 | . . . . . 3 . . 8 2 1 . . Combat Hostiles . | . . . . . . . . . . . . . Follow-up Attacks . | . . . . . . . . . . . . . Damage Inflicted 11062 | 88 1070 319 2924 325 . . 2646 798 188 706 542 1456 Guns 6315 | 88 1018 315 2878 314 . . 1702 . . . . . Cannons 944 | . . . . . . . 944 . . . . . Explosions 2774 | . 48 . . . . . . 260 5 587 542 1332 Melee 964 | . . . . . . . . 538 183 119 . 124 Ramming 65 | . 4 4 46 11 . . . . . . . . Kinetic 7182 | 35 994 315 2878 314 . . 2646 . . . . . Thermal 48 | . 48 . . . . . . . . . . . Explosive 2721 | . . . . . . . . 260 . 587 542 1332 Electromagnetic 82 | 53 24 . . . . . . . 5 . . . Impact 56 | . . . . . . . . 56 . . . . Slashing 908 | . . . . . . . . 482 183 119 . 124 Piercing . | . . . . . . . . . . . . . Highest Corruption 2 | . . . . . . . . 1 . 1 . 2 Average Corruption 1 | . . . . . . . . 1 . 1 . 1 Corruption Purged 1 | . . . . . . . . . . . . 1 Corruption Blocked . | . . . . . . . . . . . . . Effects 11 | . . . . . . . . 5 . 5 . 1 Message Errors 4 | . . . . . . . . 2 . 2 . . Matter Fused 1 | . . . . . . . . . . 1 . . Heat Flow Errors 4 | . . . . . . . . 3 . . . 1 Energy Discharges 1 | . . . . . . . . . . 1 . . Data Loss (major) 1 | . . . . . . . . . . 1 . . Overload Shots . | . . . . . . . . . . . . . Overflow Damage 462 | . 18 . . . . . 5 96 . 101 40 202 Projectiles 5 | . . . . . . . 5 . . . . . Explosions 330 | . 18 . . . . . . 15 . 78 40 179 Melee 127 | . . . . . . . . 81 . 23 . 23 Knockbacks 8 | . . . . . . . 7 1 . . . . Impact 1 | . . . . . . . . 1 . . . . Kinetic 7 | . . . . . . . 7 . . . . . Secondary . | . . . . . . . . . . . . . Self-Inflicted Damage 342 | . 28 . . . . . . . . . . 314 Shots 7 | . 1 . . . . . . . . . . 6 Rammed 10 | . . 1 7 2 . . . . . . . . Targets Rammed 12 | . 1 1 8 2 . . . . . . . . Kicked . | . . . . . . . . . . . . . Crushed 2 | . 1 . 1 . . . . . . . . . Highest Temperature 399 | 40 32 23 41 1 . . 399 157 . . 9 167 Average Temperature 61 | 18 7 4 10 1 . . 113 68 . . 3 83 Received Heat Transfer 1944 | . 300 138 822 78 . . 516 39 6 . 9 36 Effects 2 | . . . . . . . 2 . . . . . Shutdowns 1 | . . . . . . . 1 . . . . . Interference 1 | . . . . . . . 1 . . . . . Siege Activations . | . . . . . . . . . . . . . Martial Activations . | . . . . . . . . . . . . . Shielding Activations . | . . . . . . . . . . . . . Robots Disrupted . | . . . . . . . . . . . . . Combat Hostiles . | . . . . . . . . . . . . . Robots Corrupted 1 | . . . . . . . . 1 . . . . Combat Hostiles . | . . . . . . . . . . . . . Parts Fried 4 | 1 . . . . . . . 3 . . . . Impact Corruptions 2 | . . . . . . . . 2 . . . . Robots Melted . | . . . . . . . . . . . . . Combat Hostiles . | . . . . . . . . . . . . . Parts Melted . | . . . . . . . . . . . . . Heat Transferred 50 | . 50 . . . . . . . . . . . Parts Sabotaged . | . . . . . . . . . . . . . Parts Stolen . | . . . . . . . . . . . . . Parts Stripped . | . . . . . . . . . . . . . Power Chain Reactions 1 | . 1 . . . . . . . . . . . Alert | -11 -10 -10 -9 -9 -9 -8 -8 -7 -6 -5 -4 -3 ------- Run | Yrd Mat Min Mat Min Exi Min Mat Fac Fac Fac Fac Res Maximum Alert Level 1 | . . . 1 1 . . 1 . . . . 1 Low Security (%) 94 | 100 100 100 69 98 . 100 98 100 100 100 100 95 Level 1 5 | . . . 30 1 . . 1 . . . . 4 Level 2 . | . . . . . . . . . . . . . Level 3 . | . . . . . . . . . . . . . Level 4 . | . . . . . . . . . . . . . Level 5 . | . . . . . . . . . . . . . High Security . | . . . . . . . . . . . . . Max Security . | . . . . . . . . . . . . . Peak Influence 382 | 5 66 74 382 212 . . 202 116 90 148 139 296 Initial 142 | . . . . 142 . . . 79 32 46 53 12 Average 58 | . 9 12 161 36 . . 76 47 8 47 55 40 Influence Increases 4955 | 5 319 306 1107 135 . . 796 449 234 584 403 617 Destroy 0b10 Robot/C 2040 | . 180 240 760 100 . . 480 40 . 140 40 60 Destroy 0b10 Robot/NC 255 | 5 35 . 80 . . . 50 25 10 10 10 30 Destroy Leader 486 | . 50 30 188 20 . . 150 4 2 20 12 10 Allied During Kill 19 | . . 19 . . . . . . . . . . Successful Hack 242 | . 39 . 9 . . . 23 23 10 104 18 16 Select Force Hacks 30 | . . . . . . . 30 . . . . . Disable Machine 105 | . . . 30 . . . 15 15 15 15 . 15 Destroy Structure 518 | . . 2 10 . . . 18 57 17 70 158 186 Partial Spotted 240 | . . . . . . . . 45 45 60 15 75 Lose Combat Pursuer 1020 | . 15 15 30 15 . . 30 240 135 165 150 225 Influence Decreases 4669 | 5 319 306 741 501 . . 622 556 204 570 489 356 Entered New Map 476 | . . . . 224 . . . 95 35 51 58 13 Time Decay 3387 | 5 319 278 591 277 . . 582 461 161 235 281 197 Lost Part 342 | . . 12 150 . . . 40 . . 20 . 120 Lost Ally 16 | . . 16 . . . . . . . . . . Purge Threat 448 | . . . . . . . . . 8 264 150 26 Squads Dispatched 61 | . 1 . 3 . . . 13 16 6 8 7 7 Investigation 21 | . . . 1 . . . 5 7 1 2 3 2 Extermination 14 | . . . . . . . . 4 3 3 2 2 Reinforcement 21 | . 1 . 2 . . . 5 5 2 1 2 3 Assault 2 | . . . . . . . . . . 2 . . Garrison 3 | . . . . . . . 3 . . . . . Intercept . | . . . . . . . . . . . . . Searches Triggered . | . . . . . . . . . . . . . Construction Impeded 2 | . . . . . . . . 1 . . . 1 Haulers Reinforced 2 | . . . . . . . . 1 . . 1 . Active Scanning Responses . | . . . . . . . . . . . . . Cargo Convoy Interrupts . | . . . . . . . . . . . . . Stealth | -11 -10 -10 -9 -9 -9 -8 -8 -7 -6 -5 -4 -3 --------- Run | Yrd Mat Min Mat Min Exi Min Mat Fac Fac Fac Fac Res Distress Signals 22 | . 2 . 3 . . . 6 3 . 3 3 2 Communications Jammed . | . . . . . . . . . . . . . Distress Signals . | . . . . . . . . . . . . . Times Spotted 226 | . 18 12 55 5 . . 35 27 10 17 11 36 Peak Tracking Total 12 | . 3 3 6 2 . . 8 6 4 9 5 12 Tactical Retreats 38 | . 1 1 1 1 . . 1 13 4 5 4 7 Traps | -11 -10 -10 -9 -9 -9 -8 -8 -7 -6 -5 -4 -3 ------- Run | Yrd Mat Min Mat Min Exi Min Mat Fac Fac Fac Fac Res Traps Triggered 13 | . 1 . 1 . . . 1 5 . 3 1 1 Indirectly . | . . . . . . . . . . . . . Trap Hack Attempts . | . . . . . . . . . . . . . Triggered . | . . . . . . . . . . . . . Disarmed 6 | . . . . . . . . . . 6 . . Reprogrammed . | . . . . . . . . . . . . . Reused . | . . . . . . . . . . . . . Traps Extracted . | . . . . . . . . . . . . . Installed . | . . . . . . . . . . . . . Triggered . | . . . . . . . . . . . . . Machines | -11 -10 -10 -9 -9 -9 -8 -8 -7 -6 -5 -4 -3 ---------- Run | Yrd Mat Min Mat Min Exi Min Mat Fac Fac Fac Fac Res Machines Disabled 7 | . . . 2 . . . 1 1 1 1 . 1 Max in Single Turn 1 | . . . 1 . . . 1 1 1 1 . 1 Garrison Access 6 | . . . . . . . . 2 . 2 1 1 Machines Repaired . | . . . . . . . . . . . . . Machines Dismantled . | . . . . . . . . . . . . . Machines Sabotaged . | . . . . . . . . . . . . . Overloaded Fab Kills . | . . . . . . . . . . . . . Hacking | -11 -10 -10 -9 -9 -9 -8 -8 -7 -6 -5 -4 -3 --------- Run | Yrd Mat Min Mat Min Exi Min Mat Fac Fac Fac Fac Res Machines Accessed 98 | . 11 . 8 . 1 . 12 15 5 23 13 10 Terminals 55 | . 8 . 5 . . . 6 6 4 15 6 5 Fabricators 7 | . . . . . . . . 1 1 1 3 1 Repair Stations 12 | . 1 . 1 . . . 2 3 . 2 2 1 Recycling Units 10 | . 2 . 1 . . . 2 1 . 3 1 . Scanalyzers 7 | . . . 1 . . . 2 1 . 1 . 2 Garrison Access 6 | . . . . . . . . 3 . 1 1 1 Total Hacks 304 | . 26 . 15 . 1 . 61 50 11 68 36 36 Successful 201 | . 16 . 13 . 1 . 46 32 7 42 23 21 Failed 103 | . 10 . 2 . . . 15 18 4 26 13 15 Catastrophic 12 | . 2 . 1 . . . 1 . . 5 1 2 Database Lockouts . | . . . . . . . . . . . . . Manual 149 | . 16 . 5 . 1 . 20 18 7 47 13 22 Terminals 174 | . 18 . 9 . . . 26 18 9 51 18 25 Fabricators 16 | . . . . . . . . 2 2 2 8 2 Repair Stations 49 | . 6 . 2 . . . 10 18 . 4 6 3 Recycling Units 17 | . 2 . 1 . . . 4 3 . 4 3 . Scanalyzers 38 | . . . 3 . . . 21 4 . 6 . 4 Garrison Access 9 | . . . . . . . . 5 . 1 1 2 Terminal Hacks 55 | . 4 . 5 . 1 . 9 3 2 16 6 9 Record 4 | . . . . . . . 3 . . . . 1 Part Schematic 4 | . 1 . . . . . . 1 . . 1 1 Robot Analysis 1 | . . . . . . . . 1 . . . . Prototype ID Bank 7 | . 2 . 1 . . . 2 . . 1 1 . Open Door 1 | . . . . . . . . . . 1 . . Level Access Points 4 | . . . . . . . . . 1 1 1 1 Branch Access Points 1 | . 1 . . . . . . . . . . . Terminal Index 2 | . . . . . . . . . . 1 . 1 Fabricator Index 2 | . . . . . . . . . . 1 . 1 Repair Station Index 1 | . . . . . . . . . . 1 . . Scanalyzer Index 2 | . . . . . . . . . . 1 . 1 Alert Level 1 | . . . 1 . . . . . . . . . Unreport Threat 6 | . . . . . . . . . 1 3 1 1 Locate Traps 9 | . . . 2 . . . 2 1 . 2 . 2 Disarm Traps 1 | . . . . . . . . . . 1 . . Patrol Status 1 | . . . . . . . . . . 1 . . Recall Reinforcements 1 | . . . . . . . . . . . 1 . Hauler Manifests 2 | . . . . . . . 1 . . 1 . . Registered Prototypes 1 | . . . . . . . 1 . . . . . Zone Layout 3 | . . . 1 . . . . . . 1 1 . Proto ID Catalog 1 | . . . . . 1 . . . . . . . Fabricator Hacks 14 | . . . . . . . . 2 2 2 6 2 Load Schematic 7 | . . . . . . . . 1 1 1 3 1 Build 7 | . . . . . . . . 1 1 1 3 1 Repair Station Hacks 41 | . 6 . 2 . . . 7 17 . 4 4 1 Scan Component 22 | . 3 . 1 . . . 4 9 . 2 2 1 Repair 19 | . 3 . 1 . . . 3 8 . 2 2 . Recycling Unit Hacks 12 | . 2 . 1 . . . 3 1 . 3 2 . Report Inventory 9 | . 2 . 1 . . . 1 1 . 3 1 . Retrieve Matter 2 | . . . . . . . 1 . . . 1 . Retrieve Components 1 | . . . . . . . 1 . . . . . Scanalyzer 33 | . . . 3 . . . 20 2 . 4 . 4 Insert Component 16 | . . . 1 . . . 10 1 . 2 . 2 Analyze 17 | . . . 2 . . . 10 1 . 2 . 2 Garrison Access Hacks 5 | . . . . . . . . 2 . 1 1 1 Seal Access 5 | . . . . . . . . 2 . 1 1 1 Unauthorized Hacks 41 | . 4 . 2 . . . 7 5 3 12 4 4 Terminals 40 | . 4 . 2 . . . 6 5 3 12 4 4 Track 1 | . . . . . . . . . . 1 . . Botnet 37 | . 4 . 2 . . . 4 5 3 11 4 4 Operators 2 | . . . . . . . 2 . . . . . Fabricators . | . . . . . . . . . . . . . Repair Stations . | . . . . . . . . . . . . . Recycling Units . | . . . . . . . . . . . . . Scanalyzers 1 | . . . . . . . 1 . . . . . Extract 1 | . . . . . . . 1 . . . . . Garrison Access . | . . . . . . . . . . . . . Data Cores Recovered 1 | . . . . . . . . . . 1 . . Used 1 | . . . . . . . . . . 1 . . Hacking Detections 76 | . 8 . 5 . . . 11 13 5 16 10 8 Full Trace Events 14 | . . . . . . . 1 5 1 2 3 2 Feedback Events . | . . . . . . . . . . . . . Feedback Blocked . | . . . . . . . . . . . . . Robot Schematics Acquired . | . . . . . . . . . . . . . Robots Built . | . . . . . . . . . . . . . Authchips . | . . . . . . . . . . . . . Time . | . . . . . . . . . . . . . Total Robot Build Rating . | . . . . . . . . . . . . . Part Schematics Acquired 20 | . 1 . 1 . . . 11 1 . 2 1 3 Parts Built 8 | . . . . . . . . 1 1 2 3 1 Authchips . | . . . . . . . . . . . . . Time 498 | . . . . . . . . 99 49 36 265 49 Total Part Build Rating 30 | . . . . . . . . 2 2 6 18 2 Parts Repaired 19 | . 3 . 1 . . . 3 8 . 2 2 . Time 666 | . 78 . 38 . . . 123 288 . 50 89 . Parts Recycled . | . . . . . . . . . . . . . Recycled Matter . | . . . . . . . . . . . . . Retrieved Matter 248 | . . . . . . . 248 . . . . . Retrieved Components 10 | . . . . . . . 10 . . . . . Parts Scanalyzed 16 | . . . 1 . . . 10 1 . 2 . 2 Part Schematics Acquired 16 | . . . 1 . . . 10 1 . 2 . 2 Parts Damaged . | . . . . . . . . . . . . . Bothacking | -11 -10 -10 -9 -9 -9 -8 -8 -7 -6 -5 -4 -3 ------------ Run | Yrd Mat Min Mat Min Exi Min Mat Fac Fac Fac Fac Res Used RIF Installer . | . . . . . . . . . . . . . Robots Hacked 4 | . . . . . 3 . . 1 . . . . Non-combat 3 | . . . . . 2 . . 1 . . . . Combat 1 | . . . . . 1 . . . . . . . Robot Hacks Applied 5 | . . . . . 3 . . 2 . . . . parse_system 4 | . . . . . 3 . . 1 . . . . find_chute 1 | . . . . . . . . 1 . . . . Relay Couplers Released 3 | . . . . . . . . . . 3 . . Machine Destruction 3 | . . . . . . . . . . 3 . . Fabnet Peak Effective % . | . . . . . . . . . . . . . Robots Rewired 1 | . . . . . . . . 1 . . . . Allies Hacked . | . . . . . . . . . . . . . Hacks Repelled . | . . . . . . . . . . . . . Allies | -11 -10 -10 -9 -9 -9 -8 -8 -7 -6 -5 -4 -3 -------- Run | Yrd Mat Min Mat Min Exi Min Mat Fac Fac Fac Fac Res Total Allies 5 | . . 4 . . . . . 1 . . . . Largest Group 3 | . . 3 . . . . . 1 . . . . Highest-Rated Group 40 | . . 40 . . . . . 20 . . . . Highest-Rated Ally 31 | . . 31 . . . . . 20 . . . . Total Orders 1 | . . . . . . . . 1 . . . . ROAM 1 | . . . . . . . . 1 . . . . Ally Attacks 39 | . . 38 . . . . . 1 . . . . Total Damage 430 | . . 397 . . . . . 33 . . . . Kills 6 | . . 6 . . . . . . . . . . Allies Corrupted . | . . . . . . . . . . . . . Allies Melted . | . . . . . . . . . . . . . Intel | -11 -10 -10 -9 -9 -9 -8 -8 -7 -6 -5 -4 -3 ------- Run | Yrd Mat Min Mat Min Exi Min Mat Fac Fac Fac Fac Res Active Infowar (turns) 4407 | . . . . . . . . 1720 610 742 756 579 Optics 1963 | . . . . . . . . . . 628 756 579 Structural 4197 | . . . . . . . . 1720 610 742 756 369 Jamming 14 | . . . . . . . . . . 14 . . ECM 234 | . . . . . . . . 93 . 1 . 140 Robot Analysis Total 1 | . . . . . . . . 1 . . . . Derelict Logs Recovered 2 | . . . . 2 . . . . . . . . Drone Launches . | . . . . . . . . . . . . . Drone Recoveries . | . . . . . . . . . . . . . Exploration | -11 -10 -10 -9 -9 -9 -8 -8 -7 -6 -5 -4 -3 ------------- Run | Yrd Mat Min Mat Min Exi Min Mat Fac Fac Fac Fac Res Turns Passed 15917 | 95 2281 1969 2557 1442 527 66 2547 1746 610 742 756 579 Spaces Moved 13267 | 44 912 537 1143 593 241 27 1170 2632 1330 2025 1406 1207 Core 10 | 10 . . . . . . . . . . . . Treads 4657 | 34 912 537 1143 593 241 27 1170 . . . . . Legs . | . . . . . . . . . . . . . Wheels . | . . . . . . . . . . . . . Hover . | . . . . . . . . . . . . . Flight 8600 | . . . . . . . . 2632 1330 2025 1406 1207 Fastest Speed 22 | 50 160 240 160 160 160 240 156 29 29 26 26 22 Average Speed 85 | 158 214 240 160 235 215 240 159 29 29 26 26 23 Slowest Speed 320 | 200 240 320 240 240 240 240 160 34 29 29 27 29 Overloaded Moves . | . . . . . . . . . . . . . Propulsion Burnouts . | . . . . . . . . . . . . . Robots Hopped . | . . . . . . . . . . . . . Potential Cave-ins . | . . . . . . . . . . . . . Cave-ins Triggered . | . . . . . . . . . . . . . Exploration Rate (%) 53 | 4 98 67 75 91 62 10 92 43 32 54 31 32 Regions Visited 12 Branch Regions 4 Pre-discovered Areas . | . . . . . . . . . . . . . Known Exits Taken 7 | . 1 . . . . 1 1 1 1 1 1 . Unknown Exits Taken 5 | 1 . 1 1 1 1 . . . . . . . Scrap Searched 1 | . . . . 1 . . . . . . . . Spaces Dug 84 | . . 1 1 . . . 3 41 12 7 8 11 Terrain Destroyed 341 | . . 1 1 . . . 12 56 17 34 94 126 Melee 84 | . . 1 1 . . . 3 41 12 7 8 11 Projectile 9 | . . . . . . . 9 . . . . . AOE 248 | . . . . . . . . 15 5 27 86 115 Terrain Rammed . | . . . . . . . . . . . . . Walls Destroyed . | . . . . . . . . . . . . . Machines Disabled . | . . . . . . . . . . . . . Actions | -11 -10 -10 -9 -9 -9 -8 -8 -7 -6 -5 -4 -3 --------- Run | Yrd Mat Min Mat Min Exi Min Mat Fac Fac Fac Fac Res Total 16985 | 58 1118 1175 1588 618 249 29 1679 3512 1525 2213 1764 1457 Wait 2834 | . 122 599 225 4 . 3 344 734 170 142 304 187 Move 13255 | 43 911 536 1142 592 240 26 1169 2631 1329 2024 1405 1207 Hop . | . . . . . . . . . . . . . Pick Up 76 | 3 8 7 20 1 1 . 12 6 2 9 5 2 Fast Attach 59 | 6 6 1 6 1 . . 8 13 1 10 2 5 Attach 55 | . 1 4 14 . . . 7 13 2 4 5 5 Detach 10 | . . 2 . . . . 3 1 . 1 3 . Swap 59 | 2 6 2 15 1 3 . 14 9 1 2 1 3 Drop 81 | . 5 2 12 3 2 . 20 23 1 9 4 . Fire 369 | 4 58 20 145 14 . . 99 3 1 3 9 13 Melee 124 | . . 1 1 . 3 . 3 61 18 9 8 20 Ram . | . . . . . . . . . . . . . Kick . | . . . . . . . . . . . . . Crush 12 | . 1 1 8 2 . . . . . . . . Escape Stasis 51 | . . . . . . . . 18 . . 18 15 Rewire . | . . . . . . . . . . . . . Trap . | . . . . . . . . . . . . . Miscellaneous . | . . . . . . . . . . . . . Route ------- -11/Scrapyard -10/Materials (discovered 6 exits: *Mat x3 / *Min x2 / [*Sub]) -10/Mines -9/Materials (discovered 3 exits: *Mat / [*Min] / [*Sto]) -9/Mines (discovered 3 exits: *Mat x2 / *Exi) -9/Exiles -8/Mines -8/Materials (discovered 3 exits: *Fac x3) -7/Factory (discovered 2 exits: *Fac / *Low) -6/Factory (discovered 4 exits: *Fac x4) -5/Factory (discovered 6 exits: *Fac x4 / *Upp / *Ext) -4/Factory (discovered 5 exits: *Res x4 / *Upp) -3/Research (discovered 3 exits: Res x3) History --------- Turn | Location | Event 20 | -11/Scrapyard | Discovered new exit (range 15) 96 | -11/Scrapyard | Entered Materials 96 | -10/Materials | Discovered new exit (range 15) 307 | -10/Materials | Discovered new exit (range 3) 318 | -10/Materials | Build established: Mutant 485 | -10/Materials | Discovered new exit (range 15) 634 | -10/Materials | Identified exit to Mines 730 | -10/Materials | Repaired Lgt. Armor Plating 758 | -10/Materials | Repaired Lgt. Treads 785 | -10/Materials | Repaired Ion Engine 857 | -10/Materials | Discovered new exit (range 14) 1116 | -10/Materials | Discovered new exit (range 9) 1468 | -10/Materials | Discovered new exit (range 15) 2377 | -10/Materials | Entered Mines 2437 | -10/Mines | Assisted by bots powering up and referring to "LRC-V3" 2576 | -10/Mines | Discovered new exit (range 8) 2998 | -10/Mines | Assembled infested the area 3767 | -10/Mines | Core integrity fell below 50% 3829 | -10/Mines | Escorted by a lone wolf Derelict 4346 | -10/Mines | Entered Materials 4346 | -9/Materials | Evolved 2 slots: Propulsion x1, Utility x1 4543 | -9/Materials | Repaired Lgt. Nuclear Core 4693 | -9/Materials | Build established: Scavenger-Mutant 4955 | -9/Materials | Lost 6 parts (2n2u2w) 5215 | -9/Materials | Discovered new exit (range 7) 5617 | -9/Materials | Lost 4 parts (1n2u1w) 5871 | -9/Materials | Discovered new exit (range 5) 6216 | -9/Materials | Discovered new exit (range 3) 6903 | -9/Materials | Entered Mines 6974 | -9/Mines | Found DCF Scrap (12 items) 7064 | -9/Mines | Discovered new exit (range 14) 7289 | -9/Mines | Build established: Mutant 7512 | -9/Mines | Found a damaged Exp. Sensor Array with a note attached 7520 | -9/Mines | Found Prototype Device 7537 | -9/Mines | Learned 4 Materials zone layouts 7540 | -9/Mines | Identified exit to Materials 8100 | -9/Mines | Deemed a non-threat by the Exiles lab entrance 8100 | -9/Mines | Discovered new exit (range 5) 8345 | -9/Mines | Entered Exiles 8403 | -9/Exiles | Met 8R-AWN 8440 | -9/Exiles | Met EX-HEX 8495 | -9/Exiles | Met EX-BIN 8520 | -9/Exiles | Aligned with FarCom system 8522 | -9/Exiles | Given EX-Vault access code 8567 | -9/Exiles | Opened EX-Vault 8628 | -9/Exiles | Warned to stay clear of 0b10 Research branches 8665 | -9/Exiles | Exiles lab attacked by MAIN.C 8843 | -9/Exiles | Discovered new exit (range 14) 8872 | -9/Exiles | Entered Mines 8923 | -8/Mines | Discovered exit to Materials (range 6) 8938 | -8/Mines | Entered Materials 8938 | -8/Materials | Evolved 2 slots: Propulsion x1, Utility x1 8939 | -8/Materials | Identified exit to Factory 8968 | -8/Materials | Identified Exp. Sensor Array 9150 | -8/Materials | Garrison activated, responded to threat 9480 | -8/Materials | Build established: Scavenger-Mutant 9764 | -8/Materials | Met 7R-MNS 9913 | -8/Materials | Repaired Broken Minigun 9946 | -8/Materials | Repaired Imp. Treads 10549 | -8/Materials | Build established: Mutant 10787 | -8/Materials | Discovered exit to Factory (range 10) 10923 | -8/Materials | Build established: Scavenger-Mutant 10979 | -8/Materials | Discovered exit to Factory (range 6) 11363 | -8/Materials | Repaired Hacking Suite 11485 | -8/Materials | Entered Factory 11485 | -7/Factory | Evolved 2 slots: Utility x2 11486 | -7/Factory | Caught up to 7R-MNS 11678 | -7/Factory | Repaired Broken VTOL Module 11884 | -7/Factory | Discovered new exit (range 11) 11989 | -7/Factory | Build established: Hacker-Sprinter 12363 | -7/Factory | Repaired VTOL Module 12403 | -7/Factory | Repaired Lgt. Nuclear Core 12443 | -7/Factory | Repaired Imp. Light Armor Plating 12515 | -7/Factory | Discovered new exit (range 5) 12621 | -7/Factory | Fabricated Imp. Flight Unit? 12836 | -7/Factory | Repaired Imp. Light Armor Plating 12875 | -7/Factory | Repaired Lgt. Nuclear Core 12921 | -7/Factory | Repaired Adv. ECM Suite 12960 | -7/Factory | Repaired Katana 12979 | -7/Factory | Identified exit to Lower Caves 13231 | -7/Factory | Identified exit to Factory 13231 | -7/Factory | Entered another Factory area 13231 | -6/Factory | Evolved 2 slots: Utility x2 13232 | -6/Factory | Caught up to 7R-MNS 13313 | -6/Factory | Fabricated Imp. Flight Unit (x1) 13441 | -6/Factory | Identified exit to Factory 13841 | -6/Factory | Entered another Factory area 13841 | -5/Factory | Evolved 2 slots: Propulsion x1, Utility x1 13842 | -5/Factory | Caught up to 7R-MNS 13923 | -5/Factory | Discovered new exit (range 10) 13926 | -5/Factory | Identified exit to Extension 14001 | -5/Factory | Discovered new exit (range 4) 14002 | -5/Factory | Identified exit to Upper Caves 14054 | -5/Factory | Discovered new exit (range 5) 14055 | -5/Factory | Identified exit to Factory 14184 | -5/Factory | Fabricated Imp. Light Armor Plating (x2) 14211 | -5/Factory | Repaired Imp. Light Armor Plating 14286 | -5/Factory | Repaired Imp. Light Armor Plating? 14583 | -5/Factory | Entered another Factory area 14583 | -4/Factory | Evolved 2 slots: Power x1, Propulsion x1 14584 | -4/Factory | Caught up to 7R-MNS 14698 | -4/Factory | Fabricated Adv. Hacking Suite? 14737 | -4/Factory | Repaired Cesium-ion Thruster? 14758 | -4/Factory | Fabricated Adv. Hacking Suite? 14859 | -4/Factory | Repaired Cld. VTOL Module 14887 | -4/Factory | Discovered new exit (range 10) 14889 | -4/Factory | Identified exit to Upper Caves 14927 | -4/Factory | Fabricated Adv. Hacking Suite? 15124 | -4/Factory | Build established: Hacker-Scout 15137 | -4/Factory | Discovered new exit (range 20) 15283 | -4/Factory | Identified exit to Research 15339 | -4/Factory | Entered Research 15339 | -3/Research | Evolved 2 slots: Propulsion x1, Utility x1 15354 | -3/Research | Identified exit to Research 15640 | -3/Research | Spotted B-86 Titan 15647 | -3/Research | Build established: Hacker-Ninja 15742 | -3/Research | Lost 6 parts (1p2n2u1w) 15777 | -3/Research | Fabricated Imp. Flight Unit? 15785 | -3/Research | Found Fusion Bomb Launcher 15918 | -3/Research | Self-destructed Last Messages --------------- U-05 Engineer destroyed. Field Manipulator disabled. ALERT: Construction progress impeded, dispatching reinforcements to local area. System Restoration Module destroyed. System corrupted: Heat flow error (+151). U-05 Engineer lays Concrete. U-05 Engineer destroyed. Destroyed Imp. Antigrav System. Katana destroyed. The unstable cave ceiling collapses. Destroyed Gamma Rifle. Imp. Flight Unit destroyed. Destroyed Imp. Flight Unit. The unstable cave ceiling collapses. Terminal disabled. Slug penetrates Wall. Hacking Suite destroyed. Slug penetrates G-67 Veteran. [Achievement: 10k Club] Map ----- +----------------------------------------------------+ | | | | | | | | | | | | | | | | | | | | | | | | | | | | | | | | | | | ?????????????????????????????????????????????????? | | ####?????????????????????????????????????????????? | | " #?????????????????????????????????????????????? | | " #?????????????????????????????????????????????? | | #?????????????????????????????????????????????? | | ##############################????????????????? | | # #????????????????? | | " + #????????????????? | | " # @ #????????????????? | | " " Y g g #????????????????? | | # ######+#############g#####???????????????? | | # #?# #???# g ####### #????? | | #### #?# #???# + ! #????? | | #?# ""#???# ####### +????? | | #?# ""#???# #???????????????? | | #?# T"#???# #???????????????? | | #?# ""#???# #???????????????? | | +########?# ""#???# #???????????????? | | #????# #???# #???????????????? | | #????# #???#####/#####???????????????? | | " #????#####/####??????? ???????????????????? | | #????????? ?????????? ??????